fUST/lending_fUST_20251010
["ID","MTS","AMOUNT","RATE_DAILY","PERIOD"]
[390552134,1760082181979,-500.0,0.00016438,2]
[390552135,1760082182003,-500.0,0.00016438,2]
[390552136,1760082182026,-500.0,0.00016438,2]
[390552137,1760082182050,-2908.2,0.00016438,2]
[390552138,1760082182073,-500.0,0.00016438,2]
[390552139,1760082182096,-502.04813381,0.00016438,2]
[390552140,1760082182120,-1049.77,0.00016438,2]
[390552141,1760082182143,-500.0,0.00016438,2]
[390552142,1760082182165,-500.0,0.00016438,2]
[390552143,1760082182190,-500.0,0.00016438,2]
[390552144,1760082182214,-500.0,0.00016438,2]
[390552145,1760082182237,-500.0,0.00016438,2]
[390552146,1760082182260,-500.0,0.00016438,2]
[390552147,1760082182284,-596.63207175,0.00016438,2]
[390552148,1760082182757,727.56277131,0.00029625,60]
[390552149,1760082208815,153.717768,0.00024,30]
[390552150,1760082209856,153.717768,0.00024,30]
[390552151,1760082219709,154.882854,0.0002352,30]
[390552152,1760082230833,436.475,0.0002876,120]
[390552153,1760082331113,-890.02271864,0.00016328,2]
[390552154,1760082331137,-816.81,0.00016428,3]
[390552155,1760082331157,-408.41,0.00016428,3]
[390552156,1760082331177,-204.2,0.00016428,3]
[390552157,1760082331197,-612.64,0.00016428,3]
[390552158,1760082331220,-300.0,0.00016436,2]
[390552159,1760082331242,-368.10349534,0.00016437,2]
[390552160,1760082331261,-173.55987498,0.00016437,2]
[390552161,1760082331280,-500.0,0.00016438,2]
[390552162,1760082331299,-961.93,0.00016438,2]
[390552163,1760082331319,-500.0,0.00016438,2]
[390552164,1760082331338,-500.0,0.00016438,2]
[390552165,1760082331360,-500.0,0.00016438,2]
[390552166,1760082331381,-500.89667396,0.00016438,2]
[390552167,1760082331401,-482.11690002,0.00016438,2]
[390552168,1760082331423,-501.89258517,0.00016438,2]
[390552169,1760082331444,-500.0,0.00016438,2]
[390552170,1760082331462,-500.0,0.00016438,2]
[390552171,1760082331482,-500.0,0.00016438,2]
[390552172,1760082331501,-500.0,0.00016438,2]
[390552173,1760082331522,-500.0,0.00016438,2]
[390552174,1760082331542,-500.0,0.00016438,2]
[390552175,1760082331563,-500.0,0.00016438,2]
[390552176,1760082331581,-500.0,0.00016438,2]
[390552177,1760082331601,-500.0,0.00016438,2]
[390552178,1760082331623,-500.0,0.00016438,2]
[390552179,1760082331641,-500.0,0.00016438,2]
[390552180,1760082331661,-500.0,0.00016438,2]
[390552181,1760082331683,-501.90666336,0.00016438,2]
[390552182,1760082331703,-500.0,0.00016438,2]
[390552183,1760082331722,-905.13,0.00016438,2]
[390552184,1760082331741,-500.0,0.00016438,2]
[390552185,1760082331761,-818.44,0.00016438,2]
[390552186,1760082331779,-500.0,0.00016438,2]
[390552187,1760082331798,-500.0,0.00016438,2]
[390552188,1760082331816,-500.0,0.00016438,2]
[390552189,1760082331837,-500.0,0.00016438,2]
[390552190,1760082331856,-500.0,0.00016438,2]
[390552191,1760082331876,-500.0,0.00016438,2]
[390552192,1760082331896,-500.0,0.00016438,2]
[390552193,1760082331915,-500.0,0.00016438,2]
[390552194,1760082331933,-500.0,0.00016438,2]
[390552195,1760082331951,-645.31,0.00016438,2]
[390552196,1760082331970,-500.0,0.00016438,2]
[390552197,1760082331989,-500.0,0.00016438,2]
[390552198,1760082332009,-500.0,0.00016438,2]
[390552199,1760082332028,-500.0,0.00016438,2]
[390552200,1760082332047,-500.0,0.00016438,2]
[390552201,1760082332067,-1395.0,0.00016438,2]
[390552202,1760082332086,-202.9582812,0.00016438,2]
[390552203,1760082332106,-500.0,0.00016438,2]
[390552204,1760082332124,-500.0,0.00016438,2]
[390552205,1760082332144,-500.0,0.00016438,2]
[390552206,1760082332164,-500.0,0.00016438,2]
[390552207,1760082332183,-500.0,0.00016438,2]
[390552208,1760082332202,-500.0,0.00016438,2]
[390552209,1760082332221,-501.10395963,0.00016438,2]
[390552210,1760082332240,-615.6,0.00016438,2]
[390552211,1760082332259,-500.0,0.00016438,2]
[390552212,1760082332278,-500.0,0.00016438,2]
[390552213,1760082332297,-500.0,0.00016438,2]
[390552214,1760082332316,-500.0,0.00016438,2]
[390552215,1760082332334,-500.0,0.00016438,2]
[390552216,1760082332357,-500.0,0.00016438,2]
[390552217,1760082332552,-500.0,0.00016438,2]
[390552218,1760082332572,-500.0,0.00016438,2]
[390552219,1760082332592,-500.0,0.00016438,2]
[390552220,1760082332611,-500.0,0.00016438,2]
[390552221,1760082332631,-500.0,0.00016438,2]
[390552222,1760082332650,-500.0,0.00016438,2]
[390552223,1760082332670,-500.0,0.00016438,2]
[390552224,1760082332688,-500.0,0.00016438,2]
[390552225,1760082332707,-500.0,0.00016438,2]
[390552226,1760082332726,-979.59,0.00016438,2]
[390552227,1760082332747,-618.51,0.00016438,2]
[390552228,1760082332766,-500.0,0.00016438,2]
[390552229,1760082332786,-874.68,0.00016438,2]
[390552230,1760082332806,-1294.41,0.00016438,2]
[390552231,1760082332825,-500.56623133,0.00016438,2]
[390552232,1760082332845,-500.0,0.00016438,2]
[390552233,1760082332864,-514.68683796,0.00016438,2]
[390552234,1760082332884,-501.05543227,0.00016438,2]
[390552235,1760082332903,-500.0,0.00016438,2]
[390552236,1760082332922,-500.0,0.00016438,2]
[390552237,1760082332942,-500.0,0.00016438,2]
[390552238,1760082332961,-677.79,0.00016438,2]
[390552239,1760082332981,-500.0,0.00016438,2]
[390552240,1760082333001,-503.29990184,0.00016438,2]
[390552241,1760082333022,-500.0,0.00016438,2]
[390552242,1760082333042,-300.0,0.00016438,2]
[390552243,1760082333062,-500.0,0.00016438,2]
[390552244,1760082333083,-3473.67,0.00016438,2]
[390552245,1760082333102,-500.0,0.00016438,2]
[390552246,1760082333123,-500.0,0.00016438,2]
[390552247,1760082333142,-199.63242529,0.00016438,2]
[390552248,1760082333162,-500.0,0.00016438,2]
[390552249,1760082333181,-500.0,0.00016438,2]
[390552250,1760082333200,-500.0,0.00016438,2]
[390552251,1760082333220,-2000.7,0.00016438,2]
[390552252,1760082333239,-500.0,0.00016438,2]
[390552253,1760082333259,-500.0,0.00016438,2]
[390552254,1760082333279,-500.0,0.00016438,2]
[390552255,1760082333299,-972.03,0.00016438,2]
[390552256,1760082333319,-500.0,0.00016438,2]
[390552257,1760082333339,-969.09,0.00016438,2]
[390552258,1760082333360,-598.14865491,0.00016438,2]
[390552259,1760082333379,-500.0,0.00016438,2]
[390552260,1760082333401,-500.0,0.00016438,2]
[390552261,1760082333421,-500.0,0.00016438,2]
[390552262,1760082333444,-500.0,0.00016438,2]
[390552263,1760082333464,-500.0,0.00016438,2]
[390552264,1760082333485,-877.09,0.00016438,2]
[390552265,1760082333504,-500.0,0.00016438,2]
[390552266,1760082333524,-500.0,0.00016438,2]
[390552267,1760082333544,-500.0,0.00016438,2]
[390552268,1760082333564,-500.0,0.00016438,2]
[390552269,1760082333584,-1923.9,0.00016438,2]
[390552270,1760082333606,-5577.22,0.00016438,2]
[390552271,1760082333626,-500.0,0.00016438,2]
[390552272,1760082333647,-1004.65,0.00016438,2]
[390552273,1760082333669,-500.0,0.00016438,2]
[390552274,1760082333690,-500.0,0.00016438,2]
[390552275,1760082333710,-500.0,0.00016438,2]
[390552276,1760082333730,-500.0,0.00016438,2]
[390552277,1760082333750,-636.43,0.00016438,2]
[390552278,1760082333769,-502.31385421,0.00016438,2]
[390552279,1760082333788,-500.0,0.00016438,2]
[390552280,1760082333807,-500.0,0.00016438,2]
[390552281,1760082333828,-500.0,0.00016438,2]
[390552282,1760082333848,-500.0,0.00016438,2]
[390552283,1760082333868,-500.0,0.00016438,2]
[390552284,1760082333888,-500.0,0.00016438,2]
[390552285,1760082333908,-500.0,0.00016438,2]
[390552286,1760082333926,-500.0,0.00016438,2]
[390552287,1760082333945,-500.0,0.00016438,2]
[390552288,1760082333964,-500.0,0.00016438,2]
[390552289,1760082333985,-500.0,0.00016438,2]
[390552290,1760082334006,-500.0,0.00016438,2]
[390552291,1760082334025,-198.54520826,0.00016438,2]
[390552292,1760082334044,-501.29728258,0.00016438,2]
[390552293,1760082334064,-500.0,0.00016438,2]
[390552294,1760082334086,-500.0,0.00016438,2]
[390552295,1760082334108,-500.0,0.00016438,2]
[390552296,1760082334128,-744.29,0.00016438,2]
[390552297,1760082334147,-502.67585004,0.00016438,2]
[390552298,1760082334166,-500.0,0.00016438,2]
[390552299,1760082334187,-636.23,0.00016438,2]
[390552300,1760082334206,-500.0,0.00016438,2]
[390552301,1760082334228,-500.0,0.00016438,2]
[390552302,1760082334250,-915.63,0.00016438,2]
[390552303,1760082334271,-500.0,0.00016438,2]
[390552304,1760082334292,-500.0,0.00016438,2]
[390552305,1760082334312,-500.0,0.00016438,2]
[390552306,1760082334331,-500.0,0.00016438,2]
[390552307,1760082334355,-500.0,0.00016438,2]
[390552308,1760082334375,-6586.4634003,0.00016438,2]
[390552309,1760082334397,-2144.88,0.00016438,2]
[390552310,1760082334418,-500.0,0.00016438,2]
[390552311,1760082334439,-500.0,0.00016438,2]
[390552312,1760082334460,-669.74,0.00016438,2]
[390552313,1760082334480,-500.0,0.00016438,2]
[390552314,1760082334501,-500.0,0.00016438,2]
[390552315,1760082334520,-500.0,0.00016438,2]
[390552316,1760082334540,-500.0,0.00016438,2]
[390552317,1760082334559,-500.0,0.00016438,2]
[390552318,1760082334578,-501.18658578,0.00016438,2]
[390552319,1760082334598,-3276.6,0.00016438,2]
[390552320,1760082334617,-937.69,0.00016438,2]
[390552321,1760082334636,-1575.27,0.00016438,2]
[390552322,1760082334656,-500.0,0.00016438,2]
[390552323,1760082334676,-500.0,0.00016438,2]
[390552324,1760082334695,-500.0,0.00016438,2]
[390552325,1760082334714,-2087.21,0.00016438,2]
[390552326,1760082334734,-500.0,0.00016438,2]
[390552327,1760082334754,-500.0,0.00016438,2]
[390552328,1760082334774,-500.0,0.00016438,2]
[390552329,1760082334794,-1408.18,0.00016438,2]
[390552330,1760082334815,-1967.46,0.00016438,2]
[390552331,1760082334836,-500.0,0.00016438,2]
[390552332,1760082334856,-500.0,0.00016438,2]
[390552333,1760082334876,-500.0,0.00016438,2]
[390552334,1760082334896,-500.0,0.00016438,2]
[390552335,1760082334915,-500.0,0.00016438,2]
[390552336,1760082334935,-500.0,0.00016438,2]
[390552337,1760082334954,-500.0,0.00016438,2]
[390552338,1760082334974,-500.0,0.00016438,2]
[390552339,1760082334993,-500.0,0.00016438,2]
[390552340,1760082335012,-500.0,0.00016438,2]
[390552341,1760082335033,-579.07,0.00016438,2]
[390552342,1760082335052,-500.0,0.00016438,2]
[390552343,1760082335071,-501.1690776,0.00016438,2]
[390552344,1760082335090,-500.0,0.00016438,2]
[390552345,1760082335112,-500.0,0.00016438,2]
[390552346,1760082335133,-500.0,0.00016438,2]
[390552347,1760082335156,-500.6306347,0.00016438,2]
[390552348,1760082335176,-4480.7,0.00016438,2]
[390552349,1760082335197,-500.0,0.00016438,2]
[390552350,1760082335218,-1109.59,0.00016438,2]
[390552351,1760082335237,-754.29,0.00016438,2]
[390552352,1760082335257,-500.0,0.00016438,2]
[390552353,1760082335277,-502.07846543,0.00016438,2]
[390552354,1760082335297,-337.15619982,0.00016438,2]
[390552355,1760082335317,-5400.23,0.00016438,2]
[390552356,1760082335338,-500.0,0.00016438,2]
[390552357,1760082335361,-893.09,0.00016438,2]
[390552358,1760082335381,-500.0,0.00016438,2]
[390552359,1760082335401,-683.33,0.00016438,2]
[390552360,1760082335422,-5606.3,0.00016438,2]
[390552361,1760082335444,-500.0,0.00016438,2]
[390552362,1760082335465,-500.0,0.00016438,2]
[390552363,1760082335485,-501.11226324,0.00016438,2]
[390552364,1760082335507,-500.0,0.00016438,2]
[390552365,1760082335527,-4958.58,0.00016438,2]
[390552366,1760082335547,-4512.93905814,0.00016438,2]
[390552370,1760082390766,1000.0,0.00027397,120]
[390552372,1760082434122,-300.0,0.00016437,2]
[390552373,1760082434144,-445.64094186,0.00016438,2]
[390552374,1760082434164,-4958.58,0.00016438,2]
[390552375,1760082434184,-4958.58,0.00016438,2]
[390552376,1760082434204,-4958.58,0.00016438,2]
[390552377,1760082434223,-4958.58,0.00016438,2]
[390552378,1760082434242,-2007.46808214,0.00016438,2]
[390552379,1760082437085,-2951.11191786,0.00016438,2]
[390552380,1760082437105,-500.0,0.00016438,2]
[390552381,1760082437126,-4958.58,0.00016438,2]
[390552382,1760082437146,-4958.58,0.00016438,2]
[390552383,1760082437165,-4958.58,0.00016438,2]
[390552384,1760082437184,-4958.58,0.00016438,2]
[390552385,1760082437203,-4958.58,0.00016438,2]
[390552386,1760082437224,-4958.58,0.00016438,2]
[390552387,1760082437244,-500.0,0.00016438,2]
[390552388,1760082437265,-501.37689218,0.00016438,2]
[390552389,1760082437284,-480.76564044,0.00016438,2]
[390552390,1760082437302,-1196.48,0.00016438,2]
[390552391,1760082437322,-935.7,0.00016438,2]
[390552392,1760082437349,-782.42,0.00016438,2]
[390552393,1760082437371,-500.0,0.00016438,2]
[390552394,1760082437398,-500.0,0.00016438,2]
[390552395,1760082437417,-500.0,0.00016438,2]
[390552396,1760082437437,-500.0,0.00016438,2]
[390552397,1760082437456,-500.0,0.00016438,2]
[390552398,1760082437478,-500.0,0.00016438,2]
[390552399,1760082437497,-500.0,0.00016438,2]
[390552400,1760082437517,-500.0,0.00016438,2]
[390552401,1760082437537,-500.0,0.00016438,2]
[390552402,1760082437557,-500.0,0.00016438,2]
[390552403,1760082437575,-500.0,0.00016438,2]
[390552404,1760082437595,-500.0,0.00016438,2]
[390552405,1760082437614,-502.13180974,0.00016438,2]
[390552406,1760082437634,-500.0,0.00016438,2]
[390552407,1760082437654,-865.83,0.00016438,2]
[390552408,1760082437673,-500.0,0.00016438,2]
[390552409,1760082437693,-500.0,0.00016438,2]
[390552410,1760082437714,-500.0,0.00016438,2]
[390552411,1760082437734,-500.0,0.00016438,2]
[390552412,1760082437755,-500.0,0.00016438,2]
[390552413,1760082437774,-500.0,0.00016438,2]
[390552414,1760082437794,-2544.55,0.00016438,2]
[390552415,1760082437815,-4407.34,0.00016438,2]
[390552416,1760082437836,-503.78061654,0.00016438,2]
[390552417,1760082437855,-7550.27,0.00016438,2]
[390552418,1760082437876,-1006.03,0.00016438,2]
[390552419,1760082437897,-500.0,0.00016438,2]
[390552420,1760082437918,-500.0,0.00016438,2]
[390552421,1760082437938,-500.0,0.00016438,2]
[390552422,1760082437959,-1082.4,0.00016438,2]
[390552423,1760082437980,-500.0,0.00016438,2]
[390552424,1760082438001,-500.0,0.00016438,2]
[390552425,1760082438020,-500.0,0.00016438,2]
[390552426,1760082438040,-500.0,0.00016438,2]
[390552427,1760082438060,-1409.12,0.00016438,2]
[390552428,1760082438080,-501.49242872,0.00016438,2]
[390552429,1760082438100,-1485.03,0.00016438,2]
[390552430,1760082438121,-501.60551282,0.00016438,2]
[390552431,1760082438140,-500.0,0.00016438,2]
[390552432,1760082438169,-500.0,0.00016438,2]
[390552433,1760082438198,-500.0,0.00016438,2]
[390552434,1760082438222,-500.0,0.00016438,2]
[390552435,1760082438248,-2816.8,0.00016438,2]
[390552436,1760082438276,-500.0,0.00016438,2]
[390552437,1760082438303,-500.0,0.00016438,2]
[390552438,1760082438329,-500.6091402,0.00016438,2]
[390552439,1760082438359,-500.0,0.00016438,2]
[390552440,1760082438390,-4456.49,0.00016438,2]
[390552441,1760082438418,-500.0,0.00016438,2]
[390552442,1760082438445,-500.0,0.00016438,2]
[390552443,1760082438470,-500.0,0.00016438,2]
[390552444,1760082438495,-500.0,0.00016438,2]
[390552445,1760082438523,-500.0,0.00016438,2]
[390552446,1760082438548,-500.0,0.00016438,2]
[390552447,1760082438574,-500.0,0.00016438,2]
[390552448,1760082438600,-500.0,0.00016438,2]
[390552449,1760082438622,-500.88673706,0.00016438,2]
[390552450,1760082438649,-500.0,0.00016438,2]
[390552451,1760082438680,-677.02,0.00016438,2]
[390552452,1760082438702,-500.0,0.00016438,2]
[390552453,1760082438728,-501.79205893,0.00016438,2]
[390552454,1760082438752,-1001.11,0.00016438,2]
[390552455,1760082438775,-501.2198366,0.00016438,2]
[390552456,1760082438799,-500.0,0.00016438,2]
[390552457,1760082438829,-500.0,0.00016438,2]
[390552458,1760082438855,-500.0,0.00016438,2]
[390552459,1760082438884,-500.0,0.00016438,2]
[390552460,1760082438908,-500.0,0.00016438,2]
[390552461,1760082438932,-500.0,0.00016438,2]
[390552462,1760082438955,-585.13614732,0.00016438,2]
[390552463,1760082438979,-791.06,0.00016438,2]
[390552464,1760082439004,-500.0,0.00016438,2]
[390552465,1760082439027,-500.0,0.00016438,2]
[390552466,1760082439052,-500.0,0.00016438,2]
[390552467,1760082439077,-544.07973693,0.00016438,2]
[390552468,1760082439099,-500.0,0.00016438,2]
[390552469,1760082439124,-500.0,0.00016438,2]
[390552470,1760082439149,-500.0,0.00016438,2]
[390552471,1760082439172,-500.0,0.00016438,2]
[390552472,1760082439196,-578.08,0.00016438,2]
[390552473,1760082439221,-500.0,0.00016438,2]
[390552474,1760082439245,-2173.81,0.00016438,2]
[390552475,1760082439269,-500.0,0.00016438,2]
[390552476,1760082439293,-669.69,0.00016438,2]
[390552477,1760082439317,-500.0,0.00016438,2]
[390552478,1760082439340,-500.0,0.00016438,2]
[390552479,1760082439363,-500.0,0.00016438,2]
[390552480,1760082439385,-500.0,0.00016438,2]
[390552481,1760082439412,-500.88106567,0.00016438,2]
[390552482,1760082439436,-1084.19,0.00016438,2]
[390552483,1760082439460,-3610.89,0.00016438,2]
[390552484,1760082439484,-500.0,0.00016438,2]
[390552485,1760082439507,-501.2065231,0.00016438,2]
[390552486,1760082439537,-641.43994474,0.00016438,2]
[390552487,1760082439567,-500.0,0.00016438,2]
[390552488,1760082439590,-500.0,0.00016438,2]
[390552489,1760082439613,-500.0,0.00016438,2]
[390552490,1760082439636,-500.0,0.00016438,2]
[390552491,1760082439659,-826.52,0.00016438,2]
[390552492,1760082439682,-504.17224327,0.00016438,2]
[390552493,1760082439706,-500.0,0.00016438,2]
[390552494,1760082439729,-532.77412407,0.00016438,2]
[390552495,1760082439751,-440.26320699,0.00016438,2]
[390552496,1760082439775,-500.0,0.00016438,2]
[390552497,1760082439800,-500.76029854,0.00016438,2]
[390552498,1760082439825,-500.0,0.00016438,2]
[390552499,1760082439852,-1885.48,0.00016438,2]
[390552500,1760082439872,-500.0,0.00016438,2]
[390552501,1760082439892,-500.0,0.00016438,2]
[390552502,1760082439912,-500.0,0.00016438,2]
[390552503,1760082439932,-500.0,0.00016438,2]
[390552504,1760082439953,-500.0,0.00016438,2]
[390552505,1760082439973,-500.0,0.00016438,2]
[390552506,1760082440224,-500.0,0.00016438,2]
[390552507,1760082440260,-500.0,0.00016438,2]
[390552508,1760082440281,-500.0,0.00016438,2]
[390552509,1760082440302,-2252.29,0.00016438,2]
[390552510,1760082440322,-500.0,0.00016438,2]
[390552511,1760082440343,-500.0,0.00016438,2]
[390552512,1760082440362,-500.0,0.00016438,2]
[390552513,1760082440383,-567.68992436,0.00016438,2]
[390552514,1760082440407,-307.84291992,0.00016438,2]
[390552515,1760082440734,-695.30463396,0.00016438,2]
[390552516,1760082440753,-500.0,0.00016438,2]
[390552517,1760082440775,-2237.81,0.00016438,2]
[390552518,1760082440796,-500.80769288,0.00016438,2]
[390552519,1760082440817,-500.0,0.00016438,2]
[390552520,1760082440838,-500.0,0.00016438,2]
[390552521,1760082440858,-500.52230088,0.00016438,2]
[390552522,1760082440878,-500.99175476,0.00016438,2]
[390552523,1760082440899,-500.0,0.00016438,2]
[390552524,1760082440919,-500.0,0.00016438,2]
[390552525,1760082440941,-500.0,0.00016438,2]
[390552526,1760082440962,-500.0,0.00016438,2]
[390552527,1760082440982,-500.0,0.00016438,2]
[390552528,1760082441002,-500.0,0.00016438,2]
[390552529,1760082441023,-500.90624379,0.00016438,2]
[390552530,1760082441044,-500.0,0.00016438,2]
[390552531,1760082441064,-500.0,0.00016438,2]
[390552532,1760082441084,-152.68237417,0.00016438,2]
[390552533,1760082441105,-500.0,0.00016438,2]
[390552534,1760082441126,-500.0,0.00016438,2]
[390552535,1760082441145,-500.0,0.00016438,2]
[390552536,1760082441166,-500.0,0.00016438,2]
[390552537,1760082441190,-500.0,0.00016438,2]
[390552538,1760082441211,-1461.0,0.00016438,2]
[390552539,1760082441231,-500.0,0.00016438,2]
[390552540,1760082441250,-500.0,0.00016438,2]
[390552541,1760082441269,-940.51,0.00016438,2]
[390552542,1760082441288,-3405.53,0.00016438,2]
[390552543,1760082441307,-500.64376211,0.00016438,2]
[390552544,1760082441327,-151.0,0.00016438,2]
[390552545,1760082441347,-500.0,0.00016438,2]
[390552546,1760082441367,-1305.47,0.00016438,2]
[390552547,1760082441388,-501.69374582,0.00016438,2]
[390552548,1760082441408,-502.04289699,0.00016438,2]
[390552549,1760082441431,-500.91488947,0.00016438,2]
[390552550,1760082441450,-500.0,0.00016438,2]
[390552551,1760082441470,-500.0,0.00016438,2]
[390552552,1760082441489,-500.0,0.00016438,2]
[390552553,1760082441507,-307.92316517,0.00016438,2]
[390552554,1760082441526,-500.0,0.00016438,2]
[390552555,1760082441546,-500.0,0.00016438,2]
[390552556,1760082441568,-955.26,0.00016438,2]
[390552557,1760082441590,-968.88,0.00016438,2]
[390552558,1760082441610,-500.0,0.00016438,2]
[390552559,1760082441632,-500.0,0.00016438,2]
[390552560,1760082441653,-500.0,0.00016438,2]
[390552561,1760082441673,-500.0,0.00016438,2]
[390552562,1760082441692,-2241.94,0.00016438,2]
[390552563,1760082441713,-1110.5,0.00016438,2]
[390552564,1760082441735,-500.18334127,0.00016438,2]
[390552565,1760082441754,-500.0,0.00016438,2]
[390552566,1760082441776,-500.0,0.00016438,2]
[390552567,1760082441796,-500.0,0.00016438,2]
[390552568,1760082441816,-500.0,0.00016438,2]
[390552569,1760082441837,-29510.684321,0.00016438,2]
[390552570,1760082441857,-501.96330922,0.00016438,2]
[390552571,1760082441877,-500.0,0.00016438,2]
[390552572,1760082441898,-500.0,0.00016438,2]
[390552573,1760082441919,-501.34440752,0.00016438,2]
[390552574,1760082441943,-500.0,0.00016438,2]
[390552575,1760082441964,-500.0,0.00016438,2]
[390552576,1760082441987,-500.0,0.00016438,2]
[390552577,1760082442007,-500.8268469,0.00016438,2]
[390552578,1760082442028,-571.57252726,0.00016438,2]
[390552579,1760082442049,-500.0,0.00016438,2]
[390552580,1760082442068,-500.0,0.00016438,2]
[390552581,1760082442087,-496.88567449,0.00016438,2]
[390552582,1760082442107,-640.27,0.00016438,2]
[390552583,1760082442126,-524.20665313,0.00016438,2]
[390552584,1760082442145,-500.0,0.00016438,2]
[390552585,1760082442165,-500.0,0.00016438,2]
[390552586,1760082442184,-500.0,0.00016438,2]
[390552587,1760082442204,-4624.983028,0.00016438,2]
[390552588,1760082442224,-1000.0,0.00016438,2]
[390552589,1760082442244,-256.22024761,0.00016438,2]
[390552590,1760082442264,-1461.0,0.00016493,2]
[390552591,1760082442284,-151.0,0.00016493,2]
[390552592,1760082442305,-500.0,0.00016493,2]
[390552593,1760082442324,-151.0,0.00016493,2]
[390552594,1760082442344,-151.0,0.00016493,2]
[390552595,1760082442363,-151.0,0.00016493,2]
[390552596,1760082442383,-203.770119,0.00016493,2]
[390552597,1760082442409,-153.136736,0.00016493,2]
[390552598,1760082442430,-151.0,0.00016493,2]
[390552599,1760082442450,-151.0,0.00016493,2]
[390552600,1760082442473,-151.0,0.00016493,2]
[390552601,1760082442493,-152.979466,0.00016493,2]
[390552602,1760082442513,-162.3723451,0.000165,2]
[390552603,1760082442534,-4958.58,0.00016547,2]
[390552604,1760082442555,-1461.0,0.00016548,2]
[390552605,1760082442575,-221.93345763,0.00016548,2]
[390552606,1760082442596,-641.14722921,0.00016548,2]
[390552607,1760082442618,-151.0,0.00016548,2]
[390552608,1760082442638,-151.0,0.00016548,2]
[390552609,1760082442657,-151.0,0.00016548,2]
[390552610,1760082442676,-151.648283,0.00016548,2]
[390552611,1760082442696,-151.904868,0.00016602,2]
[390552612,1760082442716,-151.0,0.00016602,2]
[390552613,1760082442736,-214.71148,0.00016602,2]
[390552614,1760082442757,-151.0,0.00016602,2]
[390552615,1760082442777,-151.0,0.00016602,2]
[390552616,1760082442797,-151.0,0.00016602,2]
[390552617,1760082442817,-151.0,0.00016602,2]
[390552618,1760082442840,-151.42201,0.00016602,2]
[390552619,1760082442864,-151.0,0.00016602,2]
[390552620,1760082442884,-151.0,0.00016602,2]
[390552621,1760082442903,-151.0,0.00016602,2]
[390552622,1760082442924,-1461.0,0.00016602,2]
[390552623,1760082442945,-886.50297266,0.00016605,2]
[390552682,1760082633724,-1323.04323638,0.00016314,2]
[390552683,1760082633733,-476.47,0.00016428,3]
[390552684,1760082633742,-238.23,0.00016428,3]
[390552685,1760082633751,-714.74,0.00016428,3]
[390552686,1760082633761,-500.0,0.00016437,2]
[390552687,1760082633770,-469.99833617,0.00016437,2]
[390552688,1760082633779,-485.10795416,0.00016437,2]
[390552689,1760082633789,-500.0,0.00016437,2]
[390552690,1760082633798,-421.83406148,0.00016438,2]
[390552691,1760082633808,-500.0,0.00016438,2]
[390552692,1760082633817,-500.0,0.00016438,2]
[390552693,1760082633827,-1067.95,0.00016438,2]
[390552694,1760082633836,-500.0,0.00016438,2]
[390552695,1760082633845,-1601.67,0.00016438,2]